[Event "Titled Tuesday Blitz August 02 Late 2022"]
[White "Clarke, Brandon G I"]
[Black "Makarian, Rudik"]
[WhiteFideId "400319"]
[BlackFideId "44105681"]
[WhiteElo "2414"]
[BlackElo "2403"]
[Result "0-1"]
[Round "06"]
[TimeControl "180+1"]
[Date "2022.08.02"]
[WhiteClock "0:00:11"]
[BlackClock "0:00:06"]

1. e4 {[%clk 0:03:00]}  c5 {[%clk 0:02:58]} 2. Nf3 {[%clk 0:03:00]}  d6 {[%clk 0:02:58]} 3. Bb5+ {[%clk 0:03:00]}  Nd7 {[%clk 0:02:58]} 4. O-O {[%clk 0:03:00]}  a6 {[%clk 0:02:58]} 5. Bd3 {[%clk 0:03:01]}  Ngf6 {[%clk 0:02:58]} 6. c3 {[%clk 0:03:01]}  b5 {[%clk 0:02:58]} 7. a4 {[%clk 0:03:02]}  b4 {[%clk 0:02:58]} 8. Re1 {[%clk 0:02:57]}  Bb7 {[%clk 0:02:57]} 9. a5 {[%clk 0:02:57]}  e6 {[%clk 0:02:51]} 10. Bc2 {[%clk 0:02:57]}  Rc8 {[%clk 0:02:49]} 11. d4 {[%clk 0:02:56]}  cxd4 {[%clk 0:02:48]} 12. cxd4 {[%clk 0:02:55]}  Qc7 {[%clk 0:02:48]} 13. Bd3 {[%clk 0:02:33]}  Bxe4 {[%clk 0:02:26]} 14. Bxa6 {[%clk 0:02:27]}  Ra8 {[%clk 0:02:14]} 15. Qe2 {[%clk 0:02:19]}  Bxf3 {[%clk 0:02:04]} 16. gxf3 {[%clk 0:02:19]}  d5 {[%clk 0:02:02]} 17. Nd2 {[%clk 0:02:14]}  Bd6 {[%clk 0:02:02]} 18. Nb3 {[%clk 0:02:09]}  Bxh2+ {[%clk 0:02:00]} 19. Kg2 {[%clk 0:02:10]}  O-O {[%clk 0:01:58]} 20. Bd2 {[%clk 0:02:07]}  Qd6 {[%clk 0:01:53]} 21. Bb7 {[%clk 0:02:04]}  Ra7 {[%clk 0:01:50]} 22. a6 {[%clk 0:02:04]}  Bf4 {[%clk 0:01:49]} 23. Rh1 {[%clk 0:02:01]}  Rb8 {[%clk 0:01:31]} 24. Be1 {[%clk 0:01:55]}  g6 {[%clk 0:01:14]} 25. Qb5 {[%clk 0:01:53]}  Qc7 {[%clk 0:01:06]} 26. Bxb4 {[%clk 0:01:49]}  Raxb7 {[%clk 0:01:04]} 27. axb7 {[%clk 0:01:48]}  Rxb7 {[%clk 0:01:05]} 28. Ra8+ {[%clk 0:01:28]}  Kg7 {[%clk 0:01:04]} 29. Qa4 {[%clk 0:01:26]}  Qb6 {[%clk 0:00:59]} 30. Bd2 {[%clk 0:01:02]}  Bxd2 {[%clk 0:00:59]} 31. Nxd2 {[%clk 0:01:02]}  Nh5 {[%clk 0:00:41]} 32. Rh4 {[%clk 0:00:38]}  Qxb2 {[%clk 0:00:37]} 33. Nf1 {[%clk 0:00:36]}  Nb6 {[%clk 0:00:27]} 34. Qa6 {[%clk 0:00:29]}  Nxa8 {[%clk 0:00:26]} 35. Qxa8 {[%clk 0:00:30]}  Qb6 {[%clk 0:00:20]} 36. Ne3 {[%clk 0:00:25]}  Rb8 {[%clk 0:00:18]} 37. Qa1 {[%clk 0:00:24]}  Qd8 {[%clk 0:00:19]} 38. Qh1 {[%clk 0:00:24]}  Rb2 {[%clk 0:00:16]} 39. Qh2 {[%clk 0:00:24]}  Qg5+ {[%clk 0:00:16]} 40. Kf1 {[%clk 0:00:23]}  Rb1+ {[%clk 0:00:14]} 41. Ke2 {[%clk 0:00:24]}  Nf6 {[%clk 0:00:10]} 42. f4 {[%clk 0:00:19]}  Qg1 {[%clk 0:00:09]} 43. Qxg1 {[%clk 0:00:17]}  Rxg1 {[%clk 0:00:10]} 44. f3 {[%clk 0:00:16]}  h5 {[%clk 0:00:10]} 45. Rh2 {[%clk 0:00:16]}  Ra1 {[%clk 0:00:10]} 46. Kd3 {[%clk 0:00:16]}  Ra3+ {[%clk 0:00:09]} 47. Kd2 {[%clk 0:00:17]}  Ra2+ {[%clk 0:00:09]} 48. Nc2 {[%clk 0:00:17]}  Ng8 {[%clk 0:00:08]} 49. Rh1 {[%clk 0:00:18]}  Ne7 {[%clk 0:00:09]} 50. Kd3 {[%clk 0:00:18]}  Nf5 {[%clk 0:00:09]} 51. Rb1 {[%clk 0:00:13]}  h4 {[%clk 0:00:07]} 52. Rh1 {[%clk 0:00:13]}  Kf6 {[%clk 0:00:06]} 53. Nb4 {[%clk 0:00:10]}  Ra3+ {[%clk 0:00:06]} 54. Kd2 {[%clk 0:00:11]}  Rxf3 {[%clk 0:00:06]} 55. Nc6 {[%clk 0:00:11]}  Rxf4 {[%clk 0:00:06]} 56. Kc3 {[%clk 0:00:11]}  Rf3+ {[%clk 0:00:06]} 57. Kb4 {[%clk 0:00:11]}  h3 {[%clk 0:00:06]} 0-1


[Site "https://www.chess.com"]

[Event "Titled Tuesday Blitz August 02 Late 2022"]
[White "Drygalov, Sergey"]
[Black "Wieczorek, Oskar"]
[WhiteFideId "24171743"]
[BlackFideId "1133950"]
[WhiteElo "2523"]
[BlackElo "2330"]
[Result "0-1"]
[Round "06"]
[TimeControl "180+1"]
[Date "2022.08.02"]
[WhiteClock "0:00:03"]
[BlackClock "0:00:17"]

1. d4 {[%clk 0:03:00]}  Nf6 {[%clk 0:02:58]} 2. c4 {[%clk 0:02:56]}  c5 {[%clk 0:02:57]} 3. d5 {[%clk 0:02:56]}  g6 {[%clk 0:02:43]} 4. Nc3 {[%clk 0:02:56]}  d6 {[%clk 0:02:44]} 5. e4 {[%clk 0:02:57]}  Bg7 {[%clk 0:02:45]} 6. h3 {[%clk 0:02:56]}  O-O {[%clk 0:02:45]} 7. Nf3 {[%clk 0:02:57]}  e6 {[%clk 0:02:45]} 8. Bd3 {[%clk 0:02:56]}  Na6 {[%clk 0:02:46]} 9. Be3 {[%clk 0:02:49]}  exd5 {[%clk 0:02:44]} 10. cxd5 {[%clk 0:02:48]}  Nc7 {[%clk 0:02:39]} 11. O-O {[%clk 0:02:47]}  b5 {[%clk 0:02:29]} 12. a3 {[%clk 0:02:44]}  Re8 {[%clk 0:02:13]} 13. Nd2 {[%clk 0:02:36]}  Rb8 {[%clk 0:01:37]} 14. Rc1 {[%clk 0:02:33]}  a5 {[%clk 0:01:34]} 15. b4 {[%clk 0:02:29]}  axb4 {[%clk 0:01:34]} 16. axb4 {[%clk 0:02:29]}  cxb4 {[%clk 0:01:35]} 17. Na2 {[%clk 0:02:29]}  Na6 {[%clk 0:01:36]} 18. Qb3 {[%clk 0:02:25]}  Nd7 {[%clk 0:01:27]} 19. Nxb4 {[%clk 0:02:16]}  Ndc5 {[%clk 0:01:26]} 20. Bxc5 {[%clk 0:02:16]}  Nxc5 {[%clk 0:01:27]} 21. Qc2 {[%clk 0:02:14]}  Bd7 {[%clk 0:01:23]} 22. Nb3 {[%clk 0:02:14]}  Rc8 {[%clk 0:01:20]} 23. Nc6 {[%clk 0:02:05]}  Bxc6 {[%clk 0:01:20]} 24. dxc6 {[%clk 0:02:05]}  Nxd3 {[%clk 0:00:54]} 25. Qxd3 {[%clk 0:02:06]}  b4 {[%clk 0:00:55]} 26. Rfd1 {[%clk 0:01:59]}  Bc3 {[%clk 0:00:53]} 27. Nd4 {[%clk 0:01:34]}  Qb6 {[%clk 0:00:49]} 28. h4 {[%clk 0:01:24]}  h5 {[%clk 0:00:47]} 29. Rc2 {[%clk 0:00:45]}  Bxd4 {[%clk 0:00:43]} 30. Qxd4 {[%clk 0:00:45]}  Rxc6 {[%clk 0:00:44]} 31. Rxc6 {[%clk 0:00:26]}  Qxc6 {[%clk 0:00:45]} 32. Qxb4 {[%clk 0:00:26]}  Qxe4 {[%clk 0:00:38]} 33. Qxe4 {[%clk 0:00:22]}  Rxe4 {[%clk 0:00:39]} 34. Rxd6 {[%clk 0:00:22]}  Rxh4 {[%clk 0:00:40]} 35. g3 {[%clk 0:00:23]}  Ra4 {[%clk 0:00:40]} 36. Kg2 {[%clk 0:00:23]}  Ra7 {[%clk 0:00:40]} 37. Rb6 {[%clk 0:00:23]}  Kg7 {[%clk 0:00:40]} 38. Rd6 {[%clk 0:00:24]}  f6 {[%clk 0:00:41]} 39. Rc6 {[%clk 0:00:24]}  g5 {[%clk 0:00:41]} 40. Rb6 {[%clk 0:00:24]}  Kg6 {[%clk 0:00:41]} 41. Rd6 {[%clk 0:00:24]}  Ra5 {[%clk 0:00:42]} 42. Rc6 {[%clk 0:00:24]}  Kf5 {[%clk 0:00:42]} 43. Rc4 {[%clk 0:00:24]}  Re5 {[%clk 0:00:42]} 44. Rb4 {[%clk 0:00:24]}  Re4 {[%clk 0:00:42]} 45. Rb5+ {[%clk 0:00:24]}  Kg6 {[%clk 0:00:42]} 46. Ra5 {[%clk 0:00:22]}  Rb4 {[%clk 0:00:41]} 47. Rc5 {[%clk 0:00:22]}  h4 {[%clk 0:00:42]} 48. gxh4 {[%clk 0:00:22]}  Rxh4 {[%clk 0:00:43]} 49. Ra5 {[%clk 0:00:22]}  Rf4 {[%clk 0:00:43]} 50. Rb5 {[%clk 0:00:23]}  Kh5 {[%clk 0:00:43]} 51. Rc5 {[%clk 0:00:23]}  Kg4 {[%clk 0:00:42]} 52. Rc3 {[%clk 0:00:23]}  Kf5 {[%clk 0:00:41]} 53. Re3 {[%clk 0:00:23]}  Kg6 {[%clk 0:00:41]} 54. Rc3 {[%clk 0:00:23]}  Ra4 {[%clk 0:00:41]} 55. Re3 {[%clk 0:00:23]}  Ra6 {[%clk 0:00:40]} 56. Rc3 {[%clk 0:00:23]}  f5 {[%clk 0:00:40]} 57. Rb3 {[%clk 0:00:23]}  Kh5 {[%clk 0:00:36]} 58. Rh3+ {[%clk 0:00:22]}  Kg6 {[%clk 0:00:34]} 59. Rb3 {[%clk 0:00:23]}  Re6 {[%clk 0:00:34]} 60. Rc3 {[%clk 0:00:23]}  f4 {[%clk 0:00:33]} 61. Rc8 {[%clk 0:00:18]}  Kf5 {[%clk 0:00:31]} 62. Rf8+ {[%clk 0:00:17]}  Rf6 {[%clk 0:00:31]} 63. Rg8 {[%clk 0:00:17]}  Kg4 {[%clk 0:00:29]} 64. f3+ {[%clk 0:00:16]}  Kf5 {[%clk 0:00:28]} 65. Ra8 {[%clk 0:00:16]}  Rc6 {[%clk 0:00:27]} 66. Ra5+ {[%clk 0:00:16]}  Kg6 {[%clk 0:00:27]} 67. Ra2 {[%clk 0:00:15]}  Kh5 {[%clk 0:00:26]} 68. Ra8 {[%clk 0:00:12]}  Rc2+ {[%clk 0:00:25]} 69. Kh3 {[%clk 0:00:12]}  Rf2 {[%clk 0:00:25]} 70. Ra3 {[%clk 0:00:12]}  Rf1 {[%clk 0:00:18]} 71. Rc3 {[%clk 0:00:12]}  Rg1 {[%clk 0:00:17]} 72. Kh2 {[%clk 0:00:11]}  Rg3 {[%clk 0:00:18]} 73. Rd3 {[%clk 0:00:11]}  Kh4 {[%clk 0:00:18]} 74. Rc3 {[%clk 0:00:02]}  g4 {[%clk 0:00:18]} 75. Rd3 {[%clk 0:00:01]}  Rxf3 {[%clk 0:00:17]} 76. Rxf3 {[%clk 0:00:02]}  gxf3 {[%clk 0:00:17]} 77. Kg1 {[%clk 0:00:02]}  Kg3 {[%clk 0:00:17]} 78. Kf1 {[%clk 0:00:03]}  f2 {[%clk 0:00:17]} 0-1


[Site "https://www.chess.com"]

[Event "Titled Tuesday Blitz August 02 Late 2022"]
[White "Ernst, Sipke"]
[Black "Zhurbinsky, David"]
[WhiteFideId "1004689"]
[BlackFideId "2072904"]
[WhiteElo "2436"]
[BlackElo "2575"]
[Result "1-0"]
[Round "06"]
[TimeControl "180+1"]
[Date "2022.08.02"]
[WhiteClock "0:00:31"]
[BlackClock "0:00:02"]

1. d4 {[%clk 0:02:59]}  Nf6 {[%clk 0:02:58]} 2. c4 {[%clk 0:02:55]}  e6 {[%clk 0:02:58]} 3. Nc3 {[%clk 0:02:54]}  Bb4 {[%clk 0:02:59]} 4. a3 {[%clk 0:02:53]}  Bxc3+ {[%clk 0:02:59]} 5. bxc3 {[%clk 0:02:54]}  O-O {[%clk 0:03:00]} 6. f3 {[%clk 0:02:47]}  d5 {[%clk 0:02:58]} 7. e3 {[%clk 0:02:40]}  Re8 {[%clk 0:02:57]} 8. Bd3 {[%clk 0:02:39]}  c5 {[%clk 0:02:49]} 9. cxd5 {[%clk 0:02:31]}  Nxd5 {[%clk 0:02:29]} 10. Ne2 {[%clk 0:02:20]}  cxd4 {[%clk 0:02:25]} 11. cxd4 {[%clk 0:02:18]}  Nc6 {[%clk 0:02:24]} 12. O-O {[%clk 0:02:16]}  e5 {[%clk 0:02:23]} 13. e4 {[%clk 0:02:13]}  Nde7 {[%clk 0:02:02]} 14. d5 {[%clk 0:02:10]}  Nb8 {[%clk 0:01:57]} 15. Bg5 {[%clk 0:01:55]}  f6 {[%clk 0:01:53]} 16. Be3 {[%clk 0:01:54]}  Qd6 {[%clk 0:01:25]} 17. Nc3 {[%clk 0:01:48]}  a6 {[%clk 0:01:24]} 18. Qa4 {[%clk 0:01:43]}  Bd7 {[%clk 0:01:17]} 19. Qb4 {[%clk 0:01:43]}  Qxb4 {[%clk 0:01:09]} 20. axb4 {[%clk 0:01:44]}  Rc8 {[%clk 0:00:53]} 21. Rfc1 {[%clk 0:01:36]}  Be8 {[%clk 0:00:53]} 22. Kf2 {[%clk 0:00:48]}  Nd7 {[%clk 0:00:42]} 23. Na4 {[%clk 0:00:48]}  Kf7 {[%clk 0:00:27]} 24. g3 {[%clk 0:00:48]}  Rxc1 {[%clk 0:00:17]} 25. Rxc1 {[%clk 0:00:47]}  Rc8 {[%clk 0:00:17]} 26. Nc5 {[%clk 0:00:42]}  Nxc5 {[%clk 0:00:11]} 27. bxc5 {[%clk 0:00:43]}  f5 {[%clk 0:00:04]} 28. Rb1 {[%clk 0:00:39]}  Rb8 {[%clk 0:00:02]} 29. Bxa6 {[%clk 0:00:33]}  Ra8 {[%clk 0:00:01]} 30. Bc4 {[%clk 0:00:31]}  Ra2+ {[%clk 0:00:02]} 31. Bxa2 {[%clk 0:00:31]} 1-0


[Site "https://www.chess.com"]

[Event "Titled Tuesday Blitz August 02 Late 2022"]
[White "Fedoseev, Vladimir"]
[Black "Ghaem Maghami, Ehsan"]
[WhiteFideId "24130737"]
[BlackFideId "12500739"]
[WhiteElo "2726"]
[BlackElo "2627"]
[Result "1-0"]
[Round "06"]
[TimeControl "180+1"]
[Date "2022.08.02"]
[WhiteClock "0:00:52"]
[BlackClock "0:00:09"]

1. e4 {[%clk 0:02:59]}  c6 {[%clk 0:02:59]} 2. d4 {[%clk 0:02:58]}  d5 {[%clk 0:02:59]} 3. exd5 {[%clk 0:02:59]}  cxd5 {[%clk 0:02:59]} 4. Bd3 {[%clk 0:02:59]}  Nc6 {[%clk 0:02:59]} 5. c3 {[%clk 0:02:59]}  Nf6 {[%clk 0:03:00]} 6. Bf4 {[%clk 0:02:59]}  g6 {[%clk 0:02:57]} 7. Nd2 {[%clk 0:02:53]}  Bf5 {[%clk 0:02:54]} 8. Be2 {[%clk 0:02:53]}  Qb6 {[%clk 0:02:53]} 9. Qb3 {[%clk 0:02:51]}  Nd7 {[%clk 0:02:42]} 10. Ngf3 {[%clk 0:02:41]}  Qxb3 {[%clk 0:02:27]} 11. axb3 {[%clk 0:02:40]}  f6 {[%clk 0:02:27]} 12. Bb5 {[%clk 0:02:35]}  Bg7 {[%clk 0:02:20]} 13. O-O {[%clk 0:02:33]}  O-O {[%clk 0:02:14]} 14. Rfe1 {[%clk 0:02:32]}  Kf7 {[%clk 0:02:11]} 15. b4 {[%clk 0:02:07]}  Rfc8 {[%clk 0:02:09]} 16. h3 {[%clk 0:01:46]}  g5 {[%clk 0:02:01]} 17. Be3 {[%clk 0:01:43]}  Nb6 {[%clk 0:01:55]} 18. Nb3 {[%clk 0:01:40]}  a6 {[%clk 0:01:49]} 19. Bf1 {[%clk 0:01:35]}  Nc4 {[%clk 0:01:48]} 20. Bxc4 {[%clk 0:01:33]}  dxc4 {[%clk 0:01:49]} 21. Nc5 {[%clk 0:01:31]}  b6 {[%clk 0:01:09]} 22. Na4 {[%clk 0:01:23]}  b5 {[%clk 0:00:35]} 23. Nb6 {[%clk 0:01:22]}  Rcb8 {[%clk 0:00:35]} 24. Nxa8 {[%clk 0:01:22]}  Rxa8 {[%clk 0:00:36]} 25. d5 {[%clk 0:01:22]}  Nd8 {[%clk 0:00:33]} 26. Bb6 {[%clk 0:01:19]}  Bd7 {[%clk 0:00:25]} 27. Bxd8 {[%clk 0:01:16]}  Rxd8 {[%clk 0:00:24]} 28. Rxa6 {[%clk 0:01:17]}  Be8 {[%clk 0:00:21]} 29. d6 {[%clk 0:01:02]}  Rxd6 {[%clk 0:00:18]} 30. Rxd6 {[%clk 0:01:01]}  exd6 {[%clk 0:00:19]} 31. Nd4 {[%clk 0:01:01]}  Bd7 {[%clk 0:00:17]} 32. Ra1 {[%clk 0:01:01]}  f5 {[%clk 0:00:17]} 33. Ra7 {[%clk 0:01:01]}  Ke8 {[%clk 0:00:17]} 34. Nxf5 {[%clk 0:01:01]}  Be5 {[%clk 0:00:13]} 35. Ne3 {[%clk 0:01:00]}  h5 {[%clk 0:00:11]} 36. Nd5 {[%clk 0:00:58]}  Bc6 {[%clk 0:00:09]} 37. Nc7+ {[%clk 0:00:58]}  Kd8 {[%clk 0:00:09]} 38. Ne6+ {[%clk 0:00:58]}  Ke8 {[%clk 0:00:10]} 39. Nxg5 {[%clk 0:00:58]}  Bf4 {[%clk 0:00:09]} 40. Ne6 {[%clk 0:00:57]}  Bc1 {[%clk 0:00:09]} 41. Nd4 {[%clk 0:00:58]}  Bd7 {[%clk 0:00:09]} 42. Ne2 {[%clk 0:00:54]}  Bxb2 {[%clk 0:00:09]} 43. Ra2 {[%clk 0:00:52]} 1-0


[Site "https://www.chess.com"]

[Event "Titled Tuesday Blitz August 02 Late 2022"]
[White "Grischuk, Alexander"]
[Black "Chigaev, Maksim"]
[WhiteFideId "4126025"]
[BlackFideId "4108116"]
[WhiteElo "2762"]
[BlackElo "2438"]
[Result "0-1"]
[Round "06"]
[TimeControl "180+1"]
[Date "2022.08.02"]
[WhiteClock "0:00:02"]
[BlackClock "0:00:05"]

1. d4 {[%clk 0:03:00]}  Nf6 {[%clk 0:02:59]} 2. c4 {[%clk 0:03:00]}  g6 {[%clk 0:02:59]} 3. Bg5 {[%clk 0:03:00]}  Bg7 {[%clk 0:02:58]} 4. Nc3 {[%clk 0:02:59]}  O-O {[%clk 0:02:59]} 5. e4 {[%clk 0:02:58]}  d6 {[%clk 0:02:58]} 6. Qd2 {[%clk 0:02:57]}  Qe8 {[%clk 0:02:37]} 7. Bd3 {[%clk 0:02:48]}  e5 {[%clk 0:02:35]} 8. d5 {[%clk 0:02:48]}  a5 {[%clk 0:02:32]} 9. Nge2 {[%clk 0:02:47]}  Na6 {[%clk 0:02:32]} 10. f3 {[%clk 0:02:43]}  Bd7 {[%clk 0:02:33]} 11. O-O {[%clk 0:02:30]}  c6 {[%clk 0:02:27]} 12. Rfc1 {[%clk 0:02:17]}  cxd5 {[%clk 0:02:20]} 13. cxd5 {[%clk 0:02:16]}  Nc5 {[%clk 0:02:21]} 14. Bc2 {[%clk 0:02:12]}  b5 {[%clk 0:02:21]} 15. Be3 {[%clk 0:02:08]}  b4 {[%clk 0:02:19]} 16. Nd1 {[%clk 0:02:07]}  Bb5 {[%clk 0:02:15]} 17. Bxc5 {[%clk 0:01:55]}  dxc5 {[%clk 0:02:12]} 18. Bd3 {[%clk 0:01:55]}  Rc8 {[%clk 0:01:51]} 19. b3 {[%clk 0:01:36]}  h5 {[%clk 0:01:35]} 20. Bxb5 {[%clk 0:01:29]}  Qxb5 {[%clk 0:01:35]} 21. Nb2 {[%clk 0:01:30]}  Rfd8 {[%clk 0:01:08]} 22. Rc2 {[%clk 0:01:18]}  Kh7 {[%clk 0:01:04]} 23. Rd1 {[%clk 0:01:16]}  Ne8 {[%clk 0:00:45]} 24. Qd3 {[%clk 0:01:10]}  Qb6 {[%clk 0:00:39]} 25. Nc4 {[%clk 0:01:09]}  Qa7 {[%clk 0:00:38]} 26. Kh1 {[%clk 0:00:59]}  Nd6 {[%clk 0:00:31]} 27. Nxd6 {[%clk 0:00:59]}  Rxd6 {[%clk 0:00:32]} 28. Ng3 {[%clk 0:00:55]}  Bh6 {[%clk 0:00:31]} 29. Nf1 {[%clk 0:00:54]}  c4 {[%clk 0:00:24]} 30. Rxc4 {[%clk 0:00:38]}  Rxc4 {[%clk 0:00:24]} 31. Qxc4 {[%clk 0:00:39]}  Qf2 {[%clk 0:00:24]} 32. Qc7 {[%clk 0:00:38]}  Rf6 {[%clk 0:00:24]} 33. Qxe5 {[%clk 0:00:12]}  Rxf3 {[%clk 0:00:16]} 34. Qa1 {[%clk 0:00:13]}  Rc3 {[%clk 0:00:04]} 35. Nd2 {[%clk 0:00:04]}  Rc2 {[%clk 0:00:04]} 36. d6 {[%clk 0:00:02]}  Rxd2 {[%clk 0:00:04]} 37. Rxd2 {[%clk 0:00:02]}  Qxd2 {[%clk 0:00:05]} 38. e5 {[%clk 0:00:02]}  Bf4 {[%clk 0:00:05]} 39. h3 {[%clk 0:00:03]}  Qd5 {[%clk 0:00:05]} 40. Qf1 {[%clk 0:00:02]}  Bxe5 {[%clk 0:00:05]} 0-1


[Site "https://www.chess.com"]

[Event "Titled Tuesday Blitz August 02 Late 2022"]
[White "Ibarra Jerez, Jose Carlos"]
[Black "Bilych, Olexiy"]
[WhiteFideId "2226332"]
[BlackFideId "14156504"]
[WhiteElo "2628"]
[BlackElo "2189"]
[Result "1-0"]
[Round "06"]
[TimeControl "180+1"]
[Date "2022.08.02"]
[WhiteClock "0:01:43"]
[BlackClock "0:00:52"]

1. e4 {[%clk 0:02:58]}  e5 {[%clk 0:02:58]} 2. Nf3 {[%clk 0:02:58]}  Nc6 {[%clk 0:02:59]} 3. d4 {[%clk 0:02:58]}  exd4 {[%clk 0:02:58]} 4. Nxd4 {[%clk 0:02:58]}  Bc5 {[%clk 0:02:58]} 5. Nb3 {[%clk 0:02:57]}  Bb6 {[%clk 0:02:58]} 6. Qe2 {[%clk 0:02:58]}  d6 {[%clk 0:02:49]} 7. Nc3 {[%clk 0:02:56]}  Nf6 {[%clk 0:02:49]} 8. Be3 {[%clk 0:02:56]}  Be6 {[%clk 0:02:48]} 9. O-O-O {[%clk 0:02:55]}  Qe7 {[%clk 0:02:48]} 10. g3 {[%clk 0:02:55]}  O-O-O {[%clk 0:02:43]} 11. Bg2 {[%clk 0:02:56]}  Rhe8 {[%clk 0:02:19]} 12. Bxb6 {[%clk 0:02:54]}  axb6 {[%clk 0:02:19]} 13. Rhe1 {[%clk 0:02:55]}  Kb8 {[%clk 0:02:06]} 14. h3 {[%clk 0:02:55]}  g5 {[%clk 0:01:33]} 15. Qb5 {[%clk 0:02:54]}  Ne5 {[%clk 0:01:26]} 16. Nd4 {[%clk 0:02:44]}  Bd7 {[%clk 0:01:22]} 17. Qb3 {[%clk 0:02:42]}  Be6 {[%clk 0:01:04]} 18. Qa3 {[%clk 0:02:39]}  c6 {[%clk 0:01:01]} 19. b3 {[%clk 0:02:31]}  Bc8 {[%clk 0:00:58]} 20. f4 {[%clk 0:02:20]}  gxf4 {[%clk 0:00:57]} 21. gxf4 {[%clk 0:02:21]}  Ng6 {[%clk 0:00:57]} 22. Ncb5 {[%clk 0:01:57]}  cxb5 {[%clk 0:00:52]} 23. Nxb5 {[%clk 0:01:43]} 1-0


[Site "https://www.chess.com"]

[Event "Titled Tuesday Blitz August 02 Late 2022"]
[White "Kravtsiv, Martyn"]
[Black "Steinberg, Nitzan"]
[WhiteFideId "14113147"]
[BlackFideId "2801795"]
[WhiteElo "2694"]
[BlackElo "2471"]
[Result "0-1"]
[Round "06"]
[TimeControl "180+1"]
[Date "2022.08.02"]
[WhiteClock "0:00:18"]
[BlackClock "0:00:37"]

1. e4 {[%clk 0:03:00]}  c5 {[%clk 0:02:59]} 2. Nf3 {[%clk 0:02:59]}  e6 {[%clk 0:03:00]} 3. d4 {[%clk 0:02:59]}  cxd4 {[%clk 0:03:00]} 4. Nxd4 {[%clk 0:02:59]}  Nc6 {[%clk 0:03:01]} 5. Nc3 {[%clk 0:02:59]}  Qc7 {[%clk 0:03:01]} 6. Be2 {[%clk 0:02:58]}  a6 {[%clk 0:03:02]} 7. O-O {[%clk 0:02:57]}  Nf6 {[%clk 0:03:02]} 8. Be3 {[%clk 0:02:56]}  Be7 {[%clk 0:03:01]} 9. f4 {[%clk 0:02:56]}  d6 {[%clk 0:03:01]} 10. Kh1 {[%clk 0:02:55]}  O-O {[%clk 0:02:59]} 11. Qe1 {[%clk 0:02:56]}  Bd7 {[%clk 0:02:59]} 12. Qg3 {[%clk 0:02:50]}  b5 {[%clk 0:02:59]} 13. a3 {[%clk 0:02:48]}  Nxd4 {[%clk 0:02:54]} 14. Bxd4 {[%clk 0:02:48]}  Bc6 {[%clk 0:02:55]} 15. Rae1 {[%clk 0:02:43]}  Qb7 {[%clk 0:02:55]} 16. Bd3 {[%clk 0:02:42]}  b4 {[%clk 0:02:55]} 17. axb4 {[%clk 0:02:14]}  Qxb4 {[%clk 0:02:55]} 18. Ne2 {[%clk 0:02:14]}  Qb7 {[%clk 0:02:55]} 19. Ng1 {[%clk 0:02:04]}  Rac8 {[%clk 0:02:29]} 20. b3 {[%clk 0:01:43]}  a5 {[%clk 0:02:22]} 21. Nf3 {[%clk 0:01:40]}  a4 {[%clk 0:02:21]} 22. bxa4 {[%clk 0:01:39]}  Bxa4 {[%clk 0:02:14]} 23. Qh3 {[%clk 0:01:37]}  Bxc2 {[%clk 0:02:10]} 24. Bxc2 {[%clk 0:00:58]}  Rxc2 {[%clk 0:02:09]} 25. e5 {[%clk 0:00:54]}  dxe5 {[%clk 0:02:10]} 26. fxe5 {[%clk 0:00:55]}  Nd5 {[%clk 0:02:08]} 27. Qg4 {[%clk 0:00:49]}  h6 {[%clk 0:02:00]} 28. h4 {[%clk 0:00:47]}  Qb5 {[%clk 0:01:53]} 29. Rb1 {[%clk 0:00:40]}  Qd3 {[%clk 0:01:45]} 30. Rbd1 {[%clk 0:00:38]}  Qh7 {[%clk 0:01:32]} 31. h5 {[%clk 0:00:36]}  Rb8 {[%clk 0:01:25]} 32. Ng1 {[%clk 0:00:34]}  Ra2 {[%clk 0:01:13]} 33. Ne2 {[%clk 0:00:31]}  Qc2 {[%clk 0:01:10]} 34. Ng1 {[%clk 0:00:20]}  Bg5 {[%clk 0:00:56]} 35. Qf3 {[%clk 0:00:19]}  Nf4 {[%clk 0:00:49]} 36. Rf2 {[%clk 0:00:18]}  Qc4 {[%clk 0:00:46]} 37. Rxa2 {[%clk 0:00:18]}  Qxa2 {[%clk 0:00:47]} 38. Be3 {[%clk 0:00:18]}  Rb3 {[%clk 0:00:39]} 39. Qe4 {[%clk 0:00:18]}  Rxe3 {[%clk 0:00:37]} 0-1


[Site "https://www.chess.com"]

[Event "Titled Tuesday Blitz August 02 Late 2022"]
[White "Livaic, Leon"]
[Black "Bortnyk, Olexandr"]
[WhiteFideId "14531534"]
[BlackFideId "14120828"]
[WhiteElo "2540"]
[BlackElo "2723"]
[Result "0-1"]
[Round "06"]
[TimeControl "180+1"]
[Date "2022.08.02"]
[WhiteClock "0:00:32"]
[BlackClock "0:00:32"]

1. d4 {[%clk 0:02:47]}  d6 {[%clk 0:03:00]} 2. e4 {[%clk 0:02:47]}  Nf6 {[%clk 0:03:00]} 3. f3 {[%clk 0:02:45]}  Nbd7 {[%clk 0:03:01]} 4. c4 {[%clk 0:02:41]}  e5 {[%clk 0:02:59]} 5. d5 {[%clk 0:02:40]}  Be7 {[%clk 0:02:58]} 6. Nc3 {[%clk 0:02:40]}  a5 {[%clk 0:02:59]} 7. Be3 {[%clk 0:02:39]}  Nc5 {[%clk 0:03:00]} 8. Qd2 {[%clk 0:02:39]}  a4 {[%clk 0:02:57]} 9. Nge2 {[%clk 0:02:35]}  Nfd7 {[%clk 0:02:55]} 10. Nc1 {[%clk 0:02:35]}  O-O {[%clk 0:02:55]} 11. Nd3 {[%clk 0:02:35]}  f5 {[%clk 0:02:52]} 12. exf5 {[%clk 0:02:34]}  Rxf5 {[%clk 0:02:51]} 13. Nxc5 {[%clk 0:02:26]}  Nxc5 {[%clk 0:02:52]} 14. Bxc5 {[%clk 0:02:26]}  dxc5 {[%clk 0:02:53]} 15. Bd3 {[%clk 0:02:27]}  Bh4+ {[%clk 0:02:45]} 16. g3 {[%clk 0:02:23]}  Rxf3 {[%clk 0:02:42]} 17. gxh4 {[%clk 0:02:11]}  Qxh4+ {[%clk 0:02:42]} 18. Kd1 {[%clk 0:02:12]}  a3 {[%clk 0:02:41]} 19. Kc2 {[%clk 0:01:52]}  Rf2 {[%clk 0:02:39]} 20. Be2 {[%clk 0:01:43]}  Bf5+ {[%clk 0:02:27]} 21. Kb3 {[%clk 0:01:42]}  axb2 {[%clk 0:02:22]} 22. Kxb2 {[%clk 0:01:42]}  Qxc4 {[%clk 0:02:20]} 23. Bxc4 {[%clk 0:00:54]}  Rxd2+ {[%clk 0:02:21]} 24. Kb3 {[%clk 0:00:55]}  Bc2+ {[%clk 0:02:04]} 25. Kb2 {[%clk 0:00:55]}  Bd3+ {[%clk 0:01:46]} 26. Kb3 {[%clk 0:00:54]}  Bxc4+ {[%clk 0:01:16]} 27. Kxc4 {[%clk 0:00:55]}  Ra3 {[%clk 0:01:16]} 28. Rac1 {[%clk 0:00:44]}  Rd4+ {[%clk 0:00:58]} 29. Kxc5 {[%clk 0:00:44]}  Ra6 {[%clk 0:00:32]} 30. Nb5 {[%clk 0:00:32]}  Rc6+ {[%clk 0:00:32]} 0-1


[Site "https://www.chess.com"]